bitfinex/quotes_BTCUSD_20240906
["timestamp","ask_amount","ask_price","bid_price","bid_amount"]
[1725619842078,1.06481734,56288.0,56287.0,0.001632]
[1725619842262,1.06481374,56288.0,56287.0,0.001632]
[1725619842503,1.06480942,56288.0,56287.0,0.001632]
[1725619842743,0.94818219,56288.0,56287.0,0.00156916]
[1725619842970,0.23755219,56288.0,56287.0,0.00156916]
[1725619843207,0.34421158,56288.0,56287.0,0.00156916]
[1725619843665,0.23755219,56288.0,56287.0,0.03966782]
[1725619844768,0.23755219,56288.0,56287.0,0.04166782]
[1725619845027,0.69952658,56288.0,56287.0,0.04166782]
[1725619845244,0.94818219,56288.0,56287.0,0.04166782]
[1725619845755,0.94818219,56288.0,56287.0,0.00356916]
[1725619846011,0.59286719,56288.0,56287.0,0.00356916]
[1725619846243,0.59286719,56288.0,56287.0,0.18636782]
[1725619846244,0.5928639,56288.0,56287.0,0.18636782]
[1725619846477,0.5928639,56288.0,56287.0,0.14826916]
[1725619846690,0.59286384,56288.0,56287.0,0.18436782]
[1725619847145,0.06010565,56288.0,56287.0,0.18436782]
[1725619847370,0.16676916,56288.0,56287.0,0.36576782]
[1725619848022,0.06010565,56288.0,56287.0,0.36576782]
[1725619848445,0.23776265,56288.0,56287.0,0.36576782]
[1725619848874,0.06010565,56288.0,56287.0,0.36576782]
[1725619849535,0.04340955,56288.0,56287.0,0.54642782]
[1725619849767,0.06010545,56288.0,56287.0,0.54642782]
[1725619850023,0.0333918,56288.0,56287.0,0.36876782]
[1725619850242,0.0333918,56288.0,56287.0,0.36976782]
[1725619851192,0.2110488,56288.0,56287.0,0.18836782]
[1725619851438,0.0333918,56288.0,56287.0,0.18836782]
[1725619852561,0.2110488,56288.0,56287.0,0.18836782]
[1725619852796,0.21104878,56288.0,56287.0,0.18836782]
[1725619853012,0.21104878,56288.0,56287.0,0.18736782]
[1725619853237,0.21104878,56288.0,56287.0,0.18436782]
[1725619853469,0.21104878,56288.0,56287.0,0.18736782]
[1725619854594,0.21104878,56288.0,56287.0,0.19236782]
[1725619855246,0.03339178,56288.0,56287.0,0.19236782]
[1725619855453,0.21104878,56288.0,56287.0,0.19236782]
[1725619855878,0.2110495,56288.0,56287.0,0.19236782]
[1725619856109,0.11339949,56288.0,56287.0,0.19236782]
[1725619856388,0.29105649,56288.0,56287.0,0.19236782]
[1725619856612,0.11339949,56288.0,56287.0,0.19236782]
[1725619856838,0.29105649,56288.0,56287.0,0.19236782]
[1725619857055,0.31776817,56288.0,56287.0,0.19236782]
[1725619857684,0.14011117,56288.0,56287.0,0.19236782]
[1725619857894,0.29105649,56288.0,56287.0,0.19236782]
[1725619858100,0.11339949,56288.0,56287.0,0.19236782]
[1725619858525,0.11421549,56288.0,56287.0,0.19236782]
[1725619859213,0.29187249,56288.0,56287.0,0.19236782]
[1725619859427,0.11421549,56288.0,56287.0,0.19236782]
[1725619859657,0.0975196,56288.0,56287.0,0.19236782]
[1725619859879,0.08082299,56288.0,56287.0,0.55402782]
[1725619860831,0.1142123,56288.0,56287.0,0.55402782]
[1725619861059,0.08082299,56288.0,56287.0,0.55402782]
[1725619861504,0.08082299,56288.0,56287.0,0.54602782]
[1725619861768,0.08082299,56288.0,56287.0,0.55202782]
[1725619862448,0.08082299,56288.0,56287.0,0.91134882]
[1725619862711,0.08082299,56288.0,56287.0,0.55602782]
[1725619862925,0.11421223,56288.0,56287.0,0.55602782]
[1725619863136,0.09751759,56288.0,56287.0,0.55602782]
[1725619863346,0.09751757,56288.0,56287.0,0.55602782]
[1725619863769,0.09751757,56288.0,56287.0,0.91134882]
[1725619863987,0.09741757,56288.0,56287.0,0.91134882]
[1725619864196,0.09741757,56288.0,56287.0,0.55602782]
[1725619864408,0.11411216,56288.0,56287.0,0.55602782]
[1725619865502,0.03420517,56288.0,56287.0,0.55602782]
[1725619865921,0.01751059,56288.0,56287.0,0.55602782]
[1725619866130,0.03420518,56288.0,56287.0,0.55602782]
[1725619866802,0.03420517,56288.0,56287.0,0.55602782]
[1725619867269,0.03420517,56288.0,56287.0,0.37836782]
[1725619867702,0.03420517,56288.0,56287.0,0.55602782]
[1725619869611,0.03420417,56288.0,56287.0,1.66055024]
[1725619869847,0.03420417,56288.0,56287.0,2.01587124]
[1725619870057,0.03420417,56288.0,56287.0,2.02587124]
[1725619871169,0.01751011,56288.0,56287.0,2.02587124]
[1725619871360,0.03420282,56288.0,56287.0,2.02587124]
[1725619872555,0.06090948,56288.0,56287.0,2.02587124]
[1725619874681,0.03420282,56288.0,56287.0,2.02587124]
[1725619875012,0.03420282,56288.0,56287.0,2.01987124]
[1725619875212,0.03420282,56288.0,56287.0,2.02487124]
[1725619875424,0.03420282,56288.0,56287.0,2.38019224]
[1725619875671,0.01750871,56288.0,56287.0,2.38219224]
[1725619875881,0.000816,56288.0,56287.0,2.38919224]
[1725619876099,0.000816,56288.0,56287.0,2.38019224]
[1725619876322,0.000816,56288.0,56287.0,2.39419224]
[1725619877446,0.000816,56288.0,56287.0,2.38719224]
[1725619878566,0.000816,56288.0,56287.0,2.77651324]
[1725619879002,0.000816,56288.0,56287.0,2.76251324]
[1725619879448,0.000816,56288.0,56287.0,2.74851324]
[1725619879656,0.000816,56291.0,56290.0,1.630859]
[1725619879868,0.000816,56291.0,56290.0,2.35223786]
[1725619880082,0.000816,56291.0,56290.0,2.3903273]
[1725619881444,0.000816,56291.0,56290.0,2.4043273]
[1725619882117,0.000816,56291.0,56290.0,2.7736293]
[1725619882251,0.000816,56293.0,56292.0,1.978505]
[1725619882461,0.000816,56293.0,56292.0,2.74223489]
[1725619884230,0.000816,56293.0,56292.0,2.75623489]
[1725619884436,0.000816,56295.0,56294.0,2.44277938]
[1725619884648,0.000816,56295.0,56294.0,2.71625757]
[1725619884871,0.000816,56295.0,56294.0,2.85433472]
[1725619885745,0.000816,56295.0,56294.0,2.88233472]
[1725619890581,0.000816,56295.0,56294.0,2.86833472]
[1725619890785,0.000816,56295.0,56294.0,2.85433472]
[1725619890992,0.000816,56295.0,56294.0,2.86833472]
[1725619891194,0.000816,56295.0,56294.0,2.88233472]
[1725619893672,1e-06,56296.0,56295.0,2.680061]
[1725619893892,1e-06,56296.0,56295.0,3.05227504]
[1725619894099,1e-06,56296.0,56295.0,3.09034912]
[1725619894952,1e-06,56296.0,56295.0,3.10434912]
[1725619895176,1e-06,56296.0,56295.0,3.11834912]
[1725619896023,0.01472,56322.0,56316.0,0.710276]
[1725619896304,0.08676185,56321.0,56316.0,0.355138]
[1725619896535,0.01472,56322.0,56316.0,0.355138]
[1725619896536,0.01472,56322.0,56320.0,0.177556]
[1725619896752,0.01472,56322.0,56321.0,0.177553]
[1725619896955,0.04808994,56322.0,56321.0,0.21554722]
[1725619897220,0.10148186,56322.0,56321.0,0.21554722]
[1725619898060,0.10148186,56322.0,56321.0,0.92576122]
[1725619898291,0.06088071,56322.0,56321.0,0.92576122]
[1725619898736,0.0875751,56322.0,56321.0,0.57465422]
[1725619898945,0.0875751,56322.0,56321.0,0.22554722]
[1725619899353,0.0875751,56322.0,56321.0,0.58065422]
[1725619900260,0.0875751,56322.0,56321.0,0.57465422]
[1725619900489,0.4497251,56322.0,56321.0,0.05099422]
[1725619900703,0.50998953,56322.0,56321.0,0.04699422]
[1725619900905,0.50998953,56322.0,56321.0,0.05399422]
[1725619901059,0.4497251,56322.0,56321.0,0.05399422]
[1725619901470,0.25549116,56322.0,56321.0,0.05399422]
[1725619901644,0.2721758,56322.0,56321.0,0.05399422]
[1725619902852,0.4497258,56322.0,56321.0,0.14291422]
[1725619904026,0.2721758,56322.0,56321.0,0.32046722]
[1725619904255,0.0875758,56322.0,56321.0,0.32046722]
[1725619904696,0.0875758,56322.0,56321.0,0.14291422]
[1725619904933,0.08757998,56322.0,56321.0,0.14291422]
[1725619905781,0.0608846,56322.0,56321.0,0.14291422]
[1725619906004,0.08757998,56322.0,56321.0,0.14291422]
[1725619909371,0.26512998,56322.0,56321.0,0.14291422]
[1725619909587,0.08757998,56322.0,56321.0,0.14291422]
[1725619910016,0.08757998,56322.0,56321.0,0.32046722]
[1725619910228,0.08757976,56322.0,56321.0,0.32046722]
[1725619912002,0.08757976,56322.0,56321.0,0.14291422]
[1725619912457,0.08757976,56322.0,56321.0,0.32046722]
[1725619912717,0.08757976,56322.0,56321.0,0.14291422]
[1725619917938,0.08757976,56322.0,56321.0,0.32046722]
[1725619918352,0.08758274,56322.0,56321.0,0.32046722]
[1725619918782,0.04420139,56322.0,56321.0,0.32046722]
[1725619919030,0.08758278,56322.0,56321.0,0.32046722]
[1725619919261,0.10426793,56322.0,56321.0,0.32046722]
[1725619919464,0.13096417,56322.0,56321.0,0.32046722]
[1725619920081,0.13096417,56322.0,56321.0,0.14291422]
[1725619920475,0.13096417,56322.0,56321.0,0.32046722]
[1725619921515,0.13075046,56322.0,56321.0,0.32046722]
[1725619921883,0.13074682,56322.0,56321.0,0.32046722]
[1725619922083,0.13074682,56322.0,56321.0,0.14291422]
[1725619922084,0.30829682,56322.0,56321.0,0.14291422]
[1725619922261,0.13074682,56322.0,56321.0,0.14291422]
[1725619922919,0.13074726,56322.0,56321.0,0.14291422]
[1725619923340,1.09836241,56322.0,56321.0,0.14291422]
[1725619923548,1.02009926,56322.0,56321.0,0.14291422]
[1725619923752,1.02009926,56322.0,56321.0,0.10492]
[1725619923957,1.0201027,56322.0,56321.0,0.10492]
[1725619924177,1.12615766,56322.0,56321.0,0.10492]
[1725619924386,1.03939464,56322.0,56321.0,0.10492]
[1725619924637,1.09946403,56322.0,56321.0,0.10492]
[1725619924857,1.08278015,56322.0,56321.0,0.10492]
[1725619925293,0.88995829,56322.0,56321.0,0.10492]
[1725619925517,0.97672519,56322.0,56321.0,0.10492]
[1725619926564,1.10929389,56322.0,56321.0,0.10492]
[1725619926853,0.97672519,56322.0,56321.0,0.10492]
[1725619927176,1.46439489,56322.0,56321.0,0.10492]
[1725619927540,1.10929389,56322.0,56321.0,0.10492]
[1725619928167,1.02627716,56322.0,56321.0,0.10492]
[1725619929041,1.02627886,56322.0,56321.0,0.10492]
[1725619929254,0.99958121,56322.0,56321.0,0.10492]
[1725619929466,1.02627985,56322.0,56321.0,0.10492]
[1725619930172,1.02628084,56322.0,56321.0,0.10492]
[1725619930612,1.15951665,56322.0,56321.0,0.10492]
[1725619930822,1.02628084,56322.0,56321.0,0.10492]
[1725619931699,1.02628082,56322.0,56321.0,0.10492]
[1725619935402,1.02468082,56322.0,56321.0,0.10492]
[1725619935835,0.98129553,56322.0,56321.0,0.10492]
[1725619936051,1.02468078,56322.0,56321.0,0.10492]
[1725619936269,1.02468078,56322.0,56321.0,0.14291422]
[1725619936484,1.02468078,56322.0,56321.0,0.10492]
[1725619937805,1.02468078,56322.0,56321.0,0.14291422]
[1725619938228,1.02468078,56322.0,56321.0,0.10492]
[1725619939370,1.02468083,56322.0,56321.0,0.10492]
[1725619939825,1.02468083,56322.0,56321.0,0.14291422]
[1725619940251,1.02468083,56322.0,56321.0,0.14454622]
[1725619941266,0.97512886,56322.0,56321.0,0.14454622]
[1725619942384,0.97512886,56322.0,56321.0,0.106552]
[1725619942635,0.91505555,56322.0,56321.0,0.14454622]
[1725619942844,0.97512437,56322.0,56321.0,0.14454622]
[1725619943289,0.97512437,56322.0,56321.0,0.106552]
[1725619943516,0.97512437,56322.0,56321.0,0.14454622]
[1725619943965,0.62002337,56322.0,56321.0,0.14454622]
[1725619944183,0.72660193,56322.0,56321.0,0.14454622]
[1725619944625,0.72661,56322.0,56321.0,0.29064622]
[1725619944854,0.59332611,56322.0,56321.0,0.252652]
[1725619945075,0.72661274,56322.0,56321.0,0.29064622]
[1725619945978,0.37151129,56322.0,56321.0,0.29064622]
[1725619946660,0.23822466,56322.0,56321.0,0.29064622]
[1725619946887,0.7266161,56322.0,56321.0,0.29064622]
[1725619947336,0.94842666,56322.0,56321.0,0.14454622]
[1725619947537,1.57206452,56322.0,56321.0,0.14454622]
[1725619947677,1.73199855,56322.0,56321.0,0.14454622]
[1725619947881,1.73199855,56322.0,56321.0,0.106552]
[1725619947882,2.11596552,56322.0,56321.0,0.106552]
[1725619948256,2.14266636,56322.0,56321.0,0.106552]
[1725619948470,2.14466636,56322.0,56321.0,0.106552]
[1725619948733,2.14466636,56322.0,56317.0,0.001632]
[1725619948734,0.002,56318.0,56317.0,0.001632]
[1725619948939,0.002,56318.0,56302.0,0.71440515]
[1725619948940,0.17761,56303.0,56302.0,0.52650515]
[1725619949154,0.93544301,56303.0,56302.0,0.52650515]
[1725619949367,0.93544301,56303.0,56295.0,0.1473]
[1725619949368,0.177632,56296.0,56295.0,0.1473]
[1725619949598,0.6295718,56296.0,56295.0,0.1473]
[1725619949807,0.177638,56294.0,56293.0,0.155132]
[1725619950031,0.23772339,56294.0,56293.0,0.155132]
[1725619950295,0.26443119,56294.0,56293.0,0.155132]
[1725619950543,0.97498519,56294.0,56293.0,0.155132]
[1725619950754,0.61970819,56294.0,56293.0,0.001632]
[1725619951205,0.98482731,56294.0,56293.0,0.001632]
[1725619951442,1.02823276,56294.0,56293.0,0.001632]
[1725619951714,0.97499046,56294.0,56293.0,0.001632]
[1725619951922,0.97499046,56294.0,56293.0,0.008632]
[1725619951923,1.07599046,56294.0,56293.0,0.008632]
[1725619952147,1.43126746,56294.0,56293.0,0.013632]
[1725619952409,0.988192,56294.0,56293.0,0.006632]
[1725619952670,1.1014678,56294.0,56293.0,0.003632]
[1725619952880,1.12818014,56294.0,56293.0,0.003632]
[1725619953092,1.48345714,56294.0,56293.0,0.003632]
[1725619953527,1.4302841,56294.0,56293.0,0.003632]
[1725619953999,2.00132203,56294.0,56293.0,0.003632]
[1725619954222,1.85135364,56294.0,56293.0,0.003632]
[1725619954450,1.85135364,56294.0,56287.0,0.00156916]
[1725619954451,1.432402,56288.0,56287.0,0.00156916]
[1725619954669,1.97454466,56288.0,56287.0,0.00156916]
[1725619955313,2.08077074,56288.0,56287.0,0.00156916]
[1725619955566,2.05414595,56288.0,56287.0,0.00156916]
[1725619956014,2.06214595,56288.0,56287.0,0.00256916]
[1725619956675,2.03557454,56288.0,56287.0,0.00256916]
[1725619956884,2.04257454,56288.0,56287.0,0.00356916]
[1725619957103,2.03257454,56288.0,56287.0,0.00256916]
[1725619957577,2.03257454,56288.0,56287.0,0.00356916]
[1725619957578,2.04657454,56288.0,56287.0,0.00356916]
[1725619957910,1.45142966,56288.0,56287.0,0.00356916]
[1725619958330,1.09611466,56288.0,56287.0,0.00356916]
[1725619959240,1.10370017,56288.0,56287.0,0.04066782]
[1725619959459,1.10970008,56288.0,56287.0,0.00356916]
[1725619959724,0.73979957,56288.0,56287.0,0.00356916]
[1725619959930,0.08011137,56288.0,56287.0,0.15036916]
[1725619960180,0.03669759,56288.0,56287.0,0.32802916]
[1725619960391,0.02269759,56288.0,56287.0,0.18746782]
[1725619960643,0.03369759,56288.0,56287.0,0.18846782]
[1725619960857,0.03369759,56288.0,56287.0,0.53942782]
[1725619960858,0.02769759,56288.0,56287.0,0.53942782]
[1725619961089,0.02769759,56288.0,56287.0,0.36176782]
[1725619961558,0.01669759,56288.0,56287.0,0.36076782]
[1725619961787,0.01769759,56288.0,56287.0,0.36076782]
[1725619962241,0.32782575,56296.0,56287.0,0.36076782]
[1725619962474,0.177648,56292.0,56287.0,0.36376782]
[1725619962687,0.01669498,56291.0,56287.0,0.36376782]
[1725619962912,0.01669498,56290.0,56287.0,0.36376782]
[1725619963124,0.01669498,56289.0,56287.0,0.36376782]
[1725619963332,0.01669498,56288.0,56287.0,0.36076782]
[1725619963539,0.01669499,56291.0,56287.0,0.36076782]
[1725619963975,0.01669499,56291.0,56287.0,0.36276782]
[1725619964187,0.01669499,56291.0,56287.0,0.36076782]
[1725619964402,0.01669499,56291.0,56287.0,0.36476782]
[1725619964849,0.11669499,56291.0,56287.0,0.36076782]
[1725619965078,0.01669499,56290.0,56287.0,0.36276782]
[1725619965285,0.01669499,56290.0,56288.0,0.152]
[1725619965599,0.01669499,56290.0,56289.0,0.1755]
[1725619965836,0.01669499,56290.0,56289.0,0.36639252]
[1725619966081,0.01669499,56290.0,56289.0,0.54404652]
[1725619966306,0.000816,56297.0,56289.0,0.03809252]
[1725619966495,0.01669263,56296.0,56294.0,0.177637]
[1725619966743,0.000816,56297.0,56295.0,0.1528]
[1725619966949,0.000816,56297.0,56295.0,0.19087408]
[1725619968068,0.005816,56297.0,56295.0,0.19087408]
[1725619968534,0.01769211,56296.0,56295.0,0.19087408]
[1725619968750,0.01669211,56296.0,56295.0,0.19087408]
[1725619969851,0.01669211,56296.0,56295.0,0.19987408]
[1725619970021,0.01669211,56296.0,56295.0,0.21087408]
[1725619970243,0.000816,56297.0,56295.0,0.19087408]
[1725619970445,0.01669182,56296.0,56295.0,0.19087408]
[1725619970649,0.01769182,56296.0,56295.0,0.21287408]
[1725619971864,0.01769182,56296.0,56295.0,0.20287408]
[1725619972271,0.01769182,56296.0,56295.0,0.21187408]
[1725619972981,0.01769182,56296.0,56295.0,0.20287408]
[1725619973167,0.01769182,56296.0,56295.0,0.21287408]
[1725619974261,0.03438384,56296.0,56295.0,0.21287408]
[1725619974877,0.59398809,56296.0,56295.0,0.21287408]
[1725619975101,0.94925309,56296.0,56295.0,0.21287408]
[1725619975560,0.90585656,56296.0,56295.0,0.21287408]
[1725619975779,0.94926242,56296.0,56295.0,0.21287408]
[1725619976192,0.95007842,56296.0,56295.0,0.21287408]
[1725619977655,0.95007842,56296.0,56295.0,0.1748]
[1725619977866,0.94907842,56296.0,56295.0,0.1748]
[1725619978108,0.94907842,56296.0,56295.0,0.21287408]
[1725619978766,0.888978,56296.0,56295.0,0.21287408]
[1725619978972,0.93238433,56296.0,56295.0,0.21287408]
[1725619979184,0.94907907,56296.0,56295.0,0.21287408]
[1725619980845,0.94907907,56296.0,56295.0,0.06007408]
[1725619982131,0.94907911,56296.0,56295.0,0.06007408]
[1725619982774,1.30434411,56296.0,56295.0,0.06007408]
[1725619983604,1.3043441,56296.0,56295.0,0.06007408]
[1725619984797,1.30434421,56296.0,56295.0,0.06007408]
[1725619985436,1.244243,56296.0,56295.0,0.06007408]
[1725619985627,1.30434417,56296.0,56295.0,0.06007408]
[1725619986746,1.8198736,56296.0,56295.0,0.06007408]
[1725619986985,2.0094736,56296.0,56295.0,0.06007408]
[1725619987176,2.0094736,56296.0,56295.0,0.022]
[1725619987641,2.0094736,56296.0,56295.0,0.012]
[1725619987852,0.888272,56289.0,56288.0,0.001632]
[1725619988070,0.94837317,56289.0,56288.0,0.001632]
[1725619988279,0.94837317,56289.0,56288.0,0.03972759]
[1725619988566,1.30368217,56289.0,56288.0,0.001632]
[1725619988984,1.38699187,56289.0,56288.0,0.001632]
[1725619989194,1.40368943,56289.0,56288.0,0.001632]
[1725619989396,1.40368943,56289.0,56288.0,0.002632]
[1725619989656,1.40468943,56289.0,56288.0,0.002632]
[1725619991552,1.45775926,56289.0,56288.0,0.002632]
[1725619991996,1.40468943,56289.0,56288.0,0.002632]
[1725619992485,1.344581,56289.0,56288.0,0.002632]
[1725619992713,1.4031258,56289.0,56288.0,0.002632]
[1725619992939,1.44653921,56289.0,56288.0,0.002632]
[1725619993166,1.46323664,56289.0,56288.0,0.002632]
[1725619993611,1.56915737,56289.0,56288.0,0.002632]
[1725619994265,1.56963975,56289.0,56288.0,0.002632]
[1725619994696,1.46323664,56289.0,56288.0,0.002632]
[1725619995340,1.41982332,56289.0,56288.0,0.002632]
[1725619996008,1.41982319,56289.0,56288.0,0.002632]
[1725619996276,1.52626556,56289.0,56288.0,0.002632]
[1725619996501,1.41982319,56289.0,56288.0,0.002632]
[1725619996683,1.55282708,56289.0,56288.0,0.002632]
[1725619996919,1.41982319,56289.0,56288.0,0.002632]
[1725619997141,1.55282708,56289.0,56288.0,0.002632]
[1725619997583,1.41982319,56289.0,56288.0,0.002632]
[1725619997774,1.46996421,56289.0,56288.0,0.002632]
[1725619998197,1.82527321,56289.0,56288.0,0.002632]
[1725619998419,1.88553764,56289.0,56288.0,0.002632]
[1725619998644,1.91338189,56289.0,56288.0,0.002632]
[1725619998854,1.92272789,56289.0,56288.0,0.002632]
[1725619999078,2.05024087,56289.0,56288.0,0.002632]
[1725620001229,2.05254087,56289.0,56288.0,0.002632]
[1725620001436,1.98927644,56289.0,56288.0,0.002632]
[1725620001659,2.12832163,56289.0,56288.0,0.002632]
[1725620002103,2.13532163,56289.0,56288.0,0.003632]
[1725620002332,1.99627644,56289.0,56288.0,0.002632]
[1725620002539,2.12232163,56289.0,56288.0,0.001632]
[1725620002762,2.13432163,56289.0,56288.0,0.002632]
[1725620003180,2.14032163,56289.0,56288.0,0.003632]
[1725620004034,2.14034567,56289.0,56288.0,0.003632]
[1725620004561,3.3364311,56289.0,56288.0,0.002632]
[1725620004795,3.3364311,56289.0,56288.0,0.003632]
[1725620004796,3.26480272,56289.0,56288.0,0.003632]
[1725620005028,2.80829872,56289.0,56288.0,0.003632]
[1725620005240,2.82829872,56289.0,56288.0,0.003632]
[1725620007418,1.84097644,56289.0,56288.0,0.003632]
[1725620008354,1.95930137,56289.0,56288.0,0.003632]
[1725620008594,1.97399459,56289.0,56288.0,0.003632]
[1725620009007,1.89131083,56289.0,56288.0,0.003632]
[1725620009225,1.88331083,56289.0,56288.0,0.003632]
[1725620009607,1.88131083,56289.0,56288.0,0.003632]
[1725620010277,1.88331083,56289.0,56288.0,0.003632]
[1725620010515,1.94357526,56289.0,56288.0,0.003632]
[1725620011665,1.88346277,56289.0,56288.0,0.003632]
[1725620011890,1.94357889,56289.0,56288.0,0.003632]
[1725620014688,1.94157889,56289.0,56288.0,0.003632]
[1725620015336,1.94357889,56289.0,56288.0,0.003632]
[1725620016405,2.1032085,56289.0,56288.0,0.003632]
[1725620016603,1.94357889,56289.0,56288.0,0.003632]
[1725620017246,1.91686061,56289.0,56288.0,0.003632]
[1725620017662,2.88457861,56289.0,56288.0,0.003632]
[1725620017873,3.11488539,56289.0,56288.0,0.003632]
[1725620018067,3.11488769,56289.0,56288.0,0.003632]
[1725620018320,3.47019669,56289.0,56288.0,0.003632]
[1725620018706,3.64978001,56289.0,56288.0,0.003632]
[1725620019079,3.47019669,56289.0,56288.0,0.003632]
[1725620019660,3.59533916,56289.0,56288.0,0.003632]
[1725620019870,3.58533916,56289.0,56288.0,0.003632]
[1725620020532,3.32782243,56289.0,56288.0,0.003632]
[1725620020750,3.58534557,56289.0,56288.0,0.003632]
[1725620020941,3.32782243,56289.0,56288.0,0.003632]
[1725620022489,3.23988991,56289.0,56288.0,0.003632]
[1725620022690,3.31782592,56289.0,56288.0,0.003632]
[1725620022901,3.31782758,56289.0,56288.0,0.003632]
[1725620023948,2.81442458,56289.0,56288.0,0.003632]
[1725620024187,2.74310658,56289.0,56288.0,0.003632]
[1725620024392,2.73972258,56289.0,56288.0,0.003632]
[1725620024596,2.54962259,56289.0,56288.0,0.003632]
[1725620025883,3.00024859,56289.0,56288.0,0.003632]
[1725620027384,2.96684678,56289.0,56288.0,0.003632]
[1725620027592,3.00024792,56289.0,56288.0,0.003632]
[1725620029383,3.17998299,56289.0,56288.0,0.003632]
[1725620031189,3.00024792,56289.0,56288.0,0.003632]
[1725620031408,3.18016419,56289.0,56288.0,0.003632]
[1725620031628,2.89882519,56289.0,56288.0,0.003632]
[1725620032087,2.64097291,56289.0,56288.0,0.003632]
[1725620032325,1.84541548,56289.0,56288.0,0.153532]
[1725620032547,1.87783566,56289.0,56288.0,0.153532]
[1725620032755,1.93427651,56289.0,56288.0,0.153532]
[1725620032964,2.11419278,56289.0,56288.0,0.153532]
[1725620033172,1.93427651,56289.0,56288.0,0.003632]
[1725620033802,1.93427646,56289.0,56288.0,0.003632]
[1725620034240,2.14009598,56289.0,56288.0,0.003632]
[1725620034488,1.87783561,56289.0,56288.0,0.003632]
[1725620034759,1.81757118,56289.0,56288.0,0.003632]
[1725620035247,1.81757118,56289.0,56288.0,0.146932]
[1725620035868,1.99754547,56289.0,56288.0,0.146932]
[1725620036072,1.81757118,56289.0,56288.0,0.146932]
[1725620036702,1.80086944,56289.0,56288.0,0.146932]
[1725620036911,1.81756879,56289.0,56288.0,0.146932]
[1725620037530,1.84541375,56289.0,56288.0,0.146932]
[1725620037744,2.02538804,56289.0,56288.0,0.146932]
[1725620038806,1.84541375,56289.0,56288.0,0.146932]
[1725620039896,1.84541353,56289.0,56288.0,0.146932]
[1725620040145,1.82871429,56289.0,56288.0,0.146932]
[1725620040439,1.50680339,56289.0,56288.0,0.146932]
[1725620040648,0.14652315,56289.0,56288.0,0.328032]
[1725620040860,0.0532141,56289.0,56288.0,0.328032]
[1725620041074,0.0532141,56289.0,56288.0,0.36612759]
[1725620041509,0.13332374,56290.0,56288.0,0.35952759]
[1725620041510,0.05331396,56290.0,56288.0,0.35952759]
[1725620041844,0.05331396,56295.0,56288.0,0.04072759]
[1725620042046,0.000816,56296.0,56288.0,0.04072759]
[1725620042047,0.05331073,56292.0,56291.0,0.177648]
[1725620042305,0.05331073,56295.0,56293.0,0.177641]
[1725620042545,0.000816,56296.0,56293.0,0.177641]
[1725620043004,0.000816,56296.0,56295.0,0.515435]
[1725620043234,0.000816,56297.0,56295.0,0.515435]
[1725620043235,0.000816,56297.0,56296.0,0.870697]
[1725620043445,0.000816,56297.0,56296.0,1.225962]
[1725620043660,0.000816,56297.0,56296.0,1.264033]
[1725620044974,0.000816,56297.0,56296.0,1.287033]
[1725620046066,0.000816,56297.0,56296.0,0.931768]
[1725620049531,0.000816,56297.0,56296.0,1.287033]
[1725620049972,0.000816,56297.0,56296.0,0.931768]
[1725620053323,0.000816,56297.0,56296.0,0.398871]
[1725620053793,0.01750774,56297.0,56296.0,0.398871]
[1725620054032,1.37611946,56297.0,56296.0,0.061071]
[1725620054244,1.73137746,56297.0,56296.0,0.051071]
[1725620054466,1.93751471,56297.0,56296.0,0.051071]
[1725620054677,1.89977069,56297.0,56296.0,0.02]
[1725620054915,1.89977069,56297.0,56296.0,0.007]
[1725620055121,1.89977069,56297.0,56289.0,0.001632]
[1725620055122,0.888255,56290.0,56289.0,0.001632]
[1725620055336,0.90495183,56290.0,56289.0,0.001632]
[1725620055519,1.27694557,56290.0,56289.0,0.001632]
[1725620056615,1.37694557,56290.0,56289.0,0.001632]
[1725620057870,1.37894557,56290.0,56289.0,0.001632]
[1725620059438,1.43203406,56290.0,56289.0,0.001632]
[1725620059865,1.41533723,56290.0,56289.0,0.001632]
[1725620060094,1.43203506,56290.0,56289.0,0.001632]
[1725620062263,1.44691833,56290.0,56289.0,0.001632]
[1725620062697,1.80222033,56290.0,56289.0,0.001632]
[1725620063771,1.74913184,56290.0,56289.0,0.001632]
[1725620064882,2.04329761,56290.0,56289.0,0.001632]
[1725620065093,4.10876036,56290.0,56289.0,0.001632]
[1725620065592,3.51844936,56290.0,56289.0,0.001632]
[1725620065805,2.81836351,56290.0,56289.0,0.001632]
[1725620066010,2.78116251,56290.0,56289.0,0.001632]
[1725620066220,2.78616251,56290.0,56289.0,0.001632]
[1725620066652,2.78216251,56290.0,56289.0,0.001632]
[1725620066909,2.53284451,56290.0,56289.0,0.002632]
[1725620067150,2.70229244,56290.0,56289.0,0.002632]
[1725620067358,2.70429244,56290.0,56289.0,0.002632]
[1725620069529,2.83706739,56290.0,56289.0,0.002632]
[1725620069732,2.75474487,56290.0,56289.0,0.002632]
[1725620070164,2.73804612,56290.0,56289.0,0.002632]
[1725620070380,2.75474633,56290.0,56289.0,0.002632]
[1725620072885,3.33883533,56290.0,56289.0,0.002632]
[1725620073529,3.16982158,56290.0,56289.0,0.002632]
[1725620073702,3.18652179,56290.0,56289.0,0.002632]
[1725620075870,3.14902479,56290.0,56289.0,0.002632]
[1725620076351,3.12118199,56290.0,56289.0,0.002632]
[1725620076570,3.10448178,56290.0,56289.0,0.002632]
[1725620076799,3.12118191,56290.0,56289.0,0.002632]
[1725620077872,3.09857646,56290.0,56289.0,0.002632]
[1725620078099,3.149051,56290.0,56289.0,0.002632]
[1725620078335,2.9714,56290.0,56289.0,0.002632]
[1725620078565,3.05374768,56290.0,56289.0,0.002632]
[1725620078825,3.04669868,56290.0,56289.0,0.002632]
[1725620079260,2.97831731,56290.0,56289.0,0.002632]
[1725620079520,2.95047033,56290.0,56289.0,0.002632]
[1725620079968,2.95047121,56290.0,56289.0,0.002632]
[1725620081134,2.97831829,56290.0,56289.0,0.002632]
[1725620081622,3.00504004,56290.0,56289.0,0.002632]
[1725620082266,3.13784992,56290.0,56289.0,0.002632]
[1725620082504,3.00504004,56290.0,56289.0,0.002632]
[1725620083177,3.00504104,56290.0,56289.0,0.002632]
[1725620083411,3.0555878,56290.0,56289.0,0.002632]
[1725620085052,0.012,56288.0,56278.0,0.1414]
[1725620085277,1.599174,56279.0,56278.0,0.1414]
[1725620085503,0.888572,56270.0,56269.0,0.52650515]
[1725620085739,0.94869597,56270.0,56269.0,0.52650515]
[1725620085956,1.30412497,56270.0,56269.0,0.36386065]
[1725620086215,1.75955397,56270.0,56269.0,0.3273]
[1725620086496,1.75955397,56270.0,56269.0,0.36386065]
[1725620086697,1.75955397,56270.0,56269.0,0.3273]